[Event "53rd Women Tournament 2022"]
[Site "Belgrade"]
[Date "2022.04.03"]
[Round "7.1"]
[White "Manakova, Maria"]
[Black "Chelushkina, Irina"]
[Result "1-0"]
[ECO "B15"]
[WhiteElo "2257"]
[BlackElo "2183"]
[Annotator "NA RC"]
[PlyCount "95"]
[EventDate "2022.03.28"]
[EventType "tourn"]
[EventCountry "SRB"]
[SourceTitle "playchess.com"]
[Source "ChessBase"]
[SourceQuality "1"]
[TimeControl "40/5400+30:1800+30"]

1. e4 {[%emt 0:03:53]} g6 {[%emt 0:00:24]} 2. d4 {[%emt 0:00:53]} Bg7 {[%emt 0:00:06]} 3. Nc3 {[%emt 0:00:17]} c6 {[%emt 0:00:05]} 4. f4 {[%emt 0:00:51]} d5 {[%emt 0:00:06]} 5. e5 {[%emt 0:00:04]} a5 {[%emt 0:00:17]} 6. Nf3 {[%emt 0:01:08]} Na6 {[%emt 0:01:12]} 7. a3 {[%emt 0:01:58]} Nc7 {[%emt 0:00:28]} 8. Bd3 {[%emt 0:00:14]} h5 {[%emt 0:01:12]} 9. O-O {[%emt 0:06:29]} Nh6 {[%emt 0:00:13]} 10. Nh4 {[%emt 0:01:58]} Bg4 {[%emt 0:04:19]} 11. Qe1 {[%emt 0:00:28]} e6 {[%emt 0:00:06]} 12. Be3 {[%emt 0:11:26]} Bf5 {[%emt 0:01:51]} 13. Nxf5 {[%emt 0:00:21]} exf5 {[%emt 0:02:42]} 14. h3 {[%emt 0:04:28]} Ne6 {[%emt 0:02:20]} 15. Ne2 {[%emt 0:04:30]} Bf8 {[%emt 0:01:10]} 16. c4 {[%emt 0:00:24]} Be7 {[%emt 0:03:38]} 17. cxd5 {[%emt 0:02:18]} Qxd5 {[%emt 0:00:02]} 18. Rd1 {[%emt 0:07:33]} O-O {[%emt 0:02:01]} 19. Nc3 {[%emt 0:01:47]} Qb3 {[%emt 0:00:06]} 20. Kh2 {[%emt 0:26:12]} Rfd8 {[%emt 0:03:20]} 21. Be2 {[%emt 0:00:53]} Nc7 {[%emt 0:02:37]} 22. Bf3 {[%emt 0:01:11]} Kg7 {[%emt 0:07:47]} 23. Rd2 {[%emt 0:02:11]} Ng8 {[%emt 0:03:37]} 24. Qd1 {[%emt 0:00:19]} Qb6 {[%emt 0:05:06]} 25. Bf2 {[%emt 0:02:03]} Nd5 {[%emt 0:00:05]} 26. Nxd5 {[%emt 0:02:49]} cxd5 {[%emt 0:00:01]} 27. Rc2 {[%emt 0:00:51]} a4 {[%emt 0:01:13]} 28. Qe2 {[%emt 0:00:56]} Ra5 {[%emt 0:02:55]} 29. Rd1 {[%emt 0:04:04]} Rb5 {[%emt 0:02:03]} 30. Rd3 {[%emt 0:00:17]} h4 {[%emt 0:01:05]} 31. Re3 {[%emt 0:04:13]} g5 {[%emt 0:02:53]} 32. fxg5 {[%emt 0:00:21]} Bxg5 {[%emt 0:01:40]} 33. Rec3 {[%emt 0:00:07]} Ne7 {[%emt 0:00:19]} 34. Rc5 {[%emt 0:00:52]} Rb3 {[%emt 0:05:07]} 35. Be1 {[%emt 0:00:45]} Qg6 {[%emt 0:04:15]} 36. R2c3 {[%emt 0:01:31]} Rxc3 {[%emt 0:03:09]} 37. bxc3 {[%emt 0:02:04]} Bf4+ {[%emt 0:11:49]} 38. Kh1 {[%emt 0:00:08]} Qg5 {[%emt 0:00:34]} 39. Rc7 {[%emt 0:01:08]} Bc1 {[%emt 0:04:11]} 40. Qf2 {[%emt 0:04:12]} Bxa3 {[%emt 0:09:17]} 41. Qxh4 {[%emt 0:30:48]} f6 {[%emt 0:34:10]} 42. Rxb7 {[%emt 0:00:00]} Rh8 {[%emt 0:00:00]} 43. exf6+ {[%emt 0:00:00]} Qxf6 {[%emt 0:00:00]} 44. Qxf6+ {[%emt 0:00:00]} Kxf6 {[%emt 0:00:00]} 45. Ra7 {[%emt 0:00:00]} Bd6 {[%emt 0:00:00]} 46. Rxa4 {[%emt 0:00:00]} Rb8 {[%emt 0:00:00]} 47. Ra6 {[%emt 0:00:00]} Ke6 {[%emt 0:00:00]} 48. Rxd6+ {[%emt 0:00:00]} 1-0

[Event "53rd Women Tournament 2022"]
[Site "Belgrade"]
[Date "2022.04.03"]
[Round "7.3"]
[White "Benderac, Ana"]
[Black "Grozdanovic, Anastasia"]
[Result "1-0"]
[ECO "D30"]
[WhiteElo "2180"]
[BlackElo "2005"]
[Annotator "NA RC"]
[PlyCount "53"]
[EventDate "2022.03.28"]
[EventType "tourn"]
[EventCountry "SRB"]
[SourceTitle "playchess.com"]
[Source "ChessBase"]
[SourceQuality "1"]
[TimeControl "40/5400+30:1800+30"]

1. d4 {[%emt 0:00:09]} d5 {[%emt 0:00:06]} 2. Nf3 {[%emt 0:00:07]} Nf6 {[%emt 0:00:12]} 3. e3 {[%emt 0:00:31]} e6 {[%emt 0:01:24]} 4. c4 {[%emt 0:00:14]} c6 {[%emt 0:00:05]} 5. Nbd2 {[%emt 1:31:59]} Be7 {[%emt 0:01:53]} 6. Bd3 {[%emt 0:00:00]} Nbd7 {[%emt 0:01:02]} 7. b3 {[%emt 0:01:00]} b6 {[%emt 0:00:55]} 8. O-O {[%emt 0:00:00]} Bb7 {[%emt 0:00:29]} 9. Bb2 {[%emt 0:00:00]} O-O {[%emt 0:00:29]} 10. Qe2 {[%emt 0:01:30]} Rc8 {[%emt 0:03:21]} 11. Rac1 {[%emt 0:00:00]} Re8 {[%emt 0:04:14]} 12. Rfd1 {[%emt 0:00:00]} Bd6 {[%emt 1:22:20]} 13. Ne5 {[%emt 0:01:30]} Qe7 {[%emt 0:00:30]} 14. Ndf3 {[%emt 0:00:30]} c5 {[%emt 0:00:00]} 15. Ng5 {[%emt 0:00:30]} Rf8 {[%emt 0:00:00]} 16. Nxd7 {[%emt 0:00:00]} Qxd7 {[%emt 0:01:30]} 17. dxc5 {[%emt 0:00:00]} h6 {[%emt 0:00:30]} 18. cxd6 {[%emt 0:01:30]} hxg5 {[%emt 0:00:00]} 19. Bxf6 {[%emt 0:00:00]} gxf6 {[%emt 0:00:00]} 20. Qh5 {[%emt 0:00:00]} f5 {[%emt 0:00:00]} 21. Qxg5+ {[%emt 0:00:00]} Kh8 {[%emt 0:02:00]} 22. Bxf5 {[%emt 0:00:00]} f6 {[%emt 0:00:00]} 23. Qh6+ {[%emt 0:00:00]} Kg8 {[%emt 0:00:00]} 24. Qg6+ {[%emt 0:00:00]} Kh8 {[%emt 0:00:00]} 25. Rd4 {[%emt 0:00:00]} Qg7 {[%emt 0:00:00]} 26. Rh4+ {[%emt 0:00:00]} Kg8 {[%emt 0:00:00]} 27. Bxe6+ {[%emt 0:00:00]} 1-0

[Event "53rd Women Tournament 2022"]
[Site "Belgrade"]
[Date "2022.04.03"]
[Round "7.4"]
[White "Srdanovic, Jovana"]
[Black "Toncheva, Nadya"]
[Result "0-1"]
[ECO "D27"]
[WhiteElo "2194"]
[BlackElo "2207"]
[Annotator "NA RC"]
[PlyCount "114"]
[EventDate "2022.03.28"]
[EventType "tourn"]
[EventCountry "SRB"]
[SourceTitle "playchess.com"]
[Source "ChessBase"]
[SourceQuality "1"]
[TimeControl "40/5400+30:1800+30"]

1. d4 {[%emt 0:00:06]} d5 {[%emt 0:00:04]} 2. c4 {[%emt 0:00:09]} dxc4 {[%emt 0:00:03]} 3. e3 {[%emt 0:00:07]} Nf6 {[%emt 0:00:05]} 4. Bxc4 {[%emt 0:00:07]} e6 {[%emt 0:00:02]} 5. Nf3 {[%emt 0:00:12]} c5 {[%emt 0:00:04]} 6. O-O {[%emt 0:00:19]} Nc6 {[%emt 0:00:02]} 7. Nc3 {[%emt 0:01:48]} a6 {[%emt 0:00:08]} 8. dxc5 {[%emt 0:02:50]} Qxd1 {[%emt 0:00:07]} 9. Rxd1 {[%emt 0:00:07]} Bxc5 {[%emt 0:00:04]} 10. Be2 {[%emt 0:02:18]} O-O {[%emt 0:01:07]} 11. Ng5 {[%emt 0:04:36]} Rd8 {[%emt 0:02:33]} 12. Rxd8+ {[%emt 0:09:44]} Nxd8 {[%emt 0:00:30]} 13. a3 {[%emt 0:00:30]} Be7 {[%emt 0:04:41]} 14. e4 {[%emt 0:32:04]} b5 {[%emt 0:04:59]} 15. Be3 {[%emt 0:14:56]} Bb7 {[%emt 0:02:06]} 16. f3 {[%emt 0:02:04]} Nc6 {[%emt 0:06:41]} 17. Rd1 {[%emt 0:01:14]} Rc8 {[%emt 0:00:06]} 18. Nh3 {[%emt 0:04:51]} Kf8 {[%emt 0:08:58]} 19. Nf2 {[%emt 0:01:39]} Ke8 {[%emt 0:01:45]} 20. Kf1 {[%emt 0:02:11]} Na5 {[%emt 0:03:56]} 21. Nb1 {[%emt 0:03:17]} Nc4 {[%emt 0:04:01]} 22. Bc1 {[%emt 0:03:46]} Nd7 {[%emt 0:00:16]} 23. Nd3 {[%emt 0:02:58]} Bf6 {[%emt 0:01:33]} 24. Re1 {[%emt 0:03:45]} Bd4 {[%emt 0:05:09]} 25. Bd1 {[%emt 0:00:34]} Nde5 {[%emt 0:12:33]} 26. Nxe5 {[%emt 0:01:07]} Bxe5 {[%emt 0:01:28]} 27. b3 {[%emt 0:00:55]} Nd6 {[%emt 0:00:04]} 28. Be3 {[%emt 0:01:01]} Bxh2 {[%emt 0:00:20]} 29. Kf2 {[%emt 0:00:43]} Be5 {[%emt 0:00:20]} 30. Rh1 {[%emt 0:00:52]} h6 {[%emt 0:00:10]} 31. Ke2 {[%emt 0:02:30]} Ke7 {[%emt 0:02:23]} 32. Kd2 {[%emt 0:01:29]} Bb2 {[%emt 0:08:26]} 33. Bc2 {[%emt 0:00:08]} a5 {[%emt 0:00:54]} 34. Bd3 {[%emt 0:00:56]} a4 {[%emt 0:01:36]} 35. b4 {[%emt 0:00:08]} Nc4+ {[%emt 0:04:19]} 36. Bxc4 {[%emt 0:00:07]} Rxc4 {[%emt 0:00:03]} 37. Bc5+ {[%emt 0:00:33]} Kf6 {[%emt 0:00:13]} 38. g3 {[%emt 0:01:00]} e5 {[%emt 0:00:23]} 39. Kd3 {[%emt 0:01:13]} Bc8 {[%emt 0:01:02]} 40. Rh2 {[%emt 0:00:20]} Bd4 {[%emt 0:01:02]} 41. Bxd4 {[%emt 0:03:45]} Rxd4+ {[%emt 0:00:05]} 42. Ke3 {[%emt 0:00:08]} Rc4 {[%emt 0:08:19]} 43. Kd2 {[%emt 0:02:45]} Be6 {[%emt 0:00:30]} 44. Nc3 {[%emt 0:03:17]} Rd4+ {[%emt 0:00:31]} 45. Kc2 {[%emt 0:00:53]} Bb3+ {[%emt 0:00:32]} 46. Kb2 {[%emt 0:00:23]} Bc4 {[%emt 0:00:18]} 47. Kc2 {[%emt 0:00:22]} Ke6 {[%emt 0:01:53]} 48. g4 {[%emt 0:01:14]} Rd3 {[%emt 0:02:11]} 49. Rf2 {[%emt 0:00:51]} Kf6 {[%emt 0:01:02]} 50. f4 {[%emt 0:00:51]} exf4 {[%emt 0:04:22]} 51. Rxf4+ {[%emt 0:01:06]} Kg5 {[%emt 0:01:09]} 52. Rf5+ {[%emt 0:00:08]} Kxg4 {[%emt 0:00:06]} 53. Nxb5 {[%emt 0:00:12]} Bxb5 {[%emt 0:00:08]} 54. Rxb5 {[%emt 0:00:15]} Rxa3 {[%emt 0:00:03]} 55. Rb7 {[%emt 0:00:05]} Rf3 {[%emt 0:00:08]} 56. b5 {[%emt 0:00:19]} g5 {[%emt 0:00:43]} 57. b6 {[%emt 0:00:19]} Rb3 {[%emt 0:00:37]} 0-1

[Event "53rd Women Tournament 2022"]
[Site "Belgrade"]
[Date "2022.04.03"]
[Round "7.5"]
[White "Xu, Yuanyuan"]
[Black "Kovacevic, Radmila"]
[Result "1-0"]
[ECO "A53"]
[WhiteElo "2317"]
[BlackElo "2072"]
[Annotator "NA RC"]
[PlyCount "95"]
[EventDate "2022.03.28"]
[EventType "tourn"]
[EventCountry "SRB"]
[SourceTitle "playchess.com"]
[Source "ChessBase"]
[SourceQuality "1"]
[TimeControl "40/5400+30:1800+30"]

1. c4 {[%emt 0:00:04]} Nf6 {[%emt 0:24:17]} 2. Nc3 {[%emt 0:01:54]} c6 {[%emt 0:04:31]} 3. e4 {[%emt 0:08:22]} e5 {[%emt 0:05:06]} 4. Nf3 {[%emt 0:01:27]} Qc7 {[%emt 0:00:29]} 5. d4 {[%emt 0:00:59]} d6 {[%emt 0:02:30]} 6. h3 {[%emt 0:08:08]} Be7 {[%emt 0:02:40]} 7. Be2 {[%emt 0:01:15]} O-O {[%emt 0:00:38]} 8. O-O {[%emt 0:00:09]} a6 {[%emt 0:00:54]} 9. Be3 {[%emt 0:01:10]} b5 {[%emt 0:00:39]} 10. a3 {[%emt 0:01:59]} Nbd7 {[%emt 0:00:30]} 11. Rc1 {[%emt 0:02:24]} Qd8 {[%emt 0:00:58]} 12. Qc2 {[%emt 0:08:07]} Bb7 {[%emt 0:01:01]} 13. Rfd1 {[%emt 0:00:50]} exd4 {[%emt 0:01:00]} 14. Nxd4 {[%emt 0:06:25]} g6 {[%emt 0:00:18]} 15. cxb5 {[%emt 0:03:45]} axb5 {[%emt 0:02:14]} 16. f4 {[%emt 0:00:51]} Qb8 {[%emt 0:00:22]} 17. Bf3 {[%emt 0:01:46]} Rc8 {[%emt 0:00:13]} 18. Qf2 {[%emt 0:02:04]} Bd8 {[%emt 0:01:00]} 19. g4 {[%emt 0:04:38]} Bb6 {[%emt 0:01:26]} 20. g5 {[%emt 0:02:29]} Ne8 {[%emt 0:01:21]} 21. Bg4 {[%emt 0:08:08]} Rc7 {[%emt 0:02:35]} 22. e5 {[%emt 0:02:04]} Nf8 {[%emt 0:01:02]} 23. Bf3 {[%emt 0:11:09]} Qa7 {[%emt 0:03:56]} 24. Rd3 {[%emt 0:05:05]} dxe5 {[%emt 0:06:46]} 25. fxe5 {[%emt 0:00:05]} Ng7 {[%emt 0:00:25]} 26. Ncxb5 {[%emt 0:05:18]} cxb5 {[%emt 0:01:57]} 27. Rxc7 {[%emt 0:00:08]} Bxc7 {[%emt 0:00:15]} 28. Nf5 {[%emt 0:00:29]} Nxf5 {[%emt 0:06:34]} 29. Bxa7 {[%emt 0:00:20]} Bxf3 {[%emt 0:00:06]} 30. Rxf3 {[%emt 0:00:15]} Ne6 {[%emt 0:00:42]} 31. Rxf5 {[%emt 0:05:28]} gxf5 {[%emt 0:00:16]} 32. Bd4 {[%emt 0:00:22]} b4 {[%emt 0:04:15]} 33. axb4 {[%emt 0:02:02]} Rb8 {[%emt 0:00:04]} 34. Bc5 {[%emt 0:02:43]} f4 {[%emt 0:06:29]} 35. Qe2 {[%emt 0:02:26]} Nxg5 {[%emt 0:00:41]} 36. Qg4 {[%emt 0:01:07]} Kh8 {[%emt 0:00:06]} 37. Qxg5 {[%emt 0:01:09]} Rg8 {[%emt 0:00:07]} 38. Qxg8+ {[%emt 0:00:13]} Kxg8 {[%emt 0:00:05]} 39. Bd6 {[%emt 0:00:16]} Bb6+ {[%emt 0:02:35]} 40. Kg2 {[%emt 0:00:01]} Bd4 {[%emt 0:01:31]} 41. b5 {[%emt 0:31:08]} Bb6 {[%emt 0:30:34]} 42. Kf3 {[%emt 0:00:12]} Kg7 {[%emt 0:00:06]} 43. Kxf4 {[%emt 0:00:25]} Kg6 {[%emt 0:00:05]} 44. Ke4 {[%emt 0:00:36]} f5+ {[%emt 0:00:07]} 45. Kf4 {[%emt 0:00:28]} Bd8 {[%emt 0:00:54]} 46. Bc5 {[%emt 0:01:19]} Bg5+ {[%emt 0:00:38]} 47. Kf3 {[%emt 0:00:03]} Kf7 {[%emt 0:00:56]} 48. b6 {[%emt 0:00:23]} 1-0

[Event "53rd Women Tournament 2022"]
[Site "Belgrade"]
[Date "2022.04.04"]
[Round "8.1"]
[White "Chelushkina, Irina"]
[Black "Kovacevic, Radmila"]
[Result "1-0"]
[ECO "A43"]
[WhiteElo "2183"]
[BlackElo "2072"]
[Annotator "NA RC"]
[PlyCount "129"]
[EventDate "2022.03.28"]
[EventType "tourn"]
[EventCountry "SRB"]
[SourceTitle "playchess.com"]
[Source "ChessBase"]
[SourceQuality "1"]
[TimeControl "40/5400+30:1800+30"]

1. g3 {[%emt 0:00:01]} g6 {[%emt 0:08:31]} 2. Bg2 {[%emt 0:00:05]} Bg7 {[%emt 0:00:05]} 3. d4 {[%emt 0:00:07]} c5 {[%emt 0:00:14]} 4. d5 {[%emt 0:00:29]} d6 {[%emt 0:00:56]} 5. e4 {[%emt 0:00:30]} e5 {[%emt 0:08:27]} 6. dxe6 {[%emt 0:01:08]} Bxe6 {[%emt 0:02:03]} 7. Ne2 {[%emt 0:00:20]} Nc6 {[%emt 0:00:32]} 8. O-O {[%emt 0:00:12]} Qc7 {[%emt 0:01:57]} 9. Nbc3 {[%emt 0:00:14]} O-O-O {[%emt 0:01:18]} 10. Nf4 {[%emt 0:07:34]} Nf6 {[%emt 0:22:00]} 11. a4 {[%emt 0:03:19]} Kb8 {[%emt 0:01:25]} 12. Nfd5 {[%emt 0:01:40]} Bxd5 {[%emt 0:01:53]} 13. exd5 {[%emt 0:00:06]} Nd4 {[%emt 0:03:44]} 14. Nb5 {[%emt 0:03:28]} Nxb5 {[%emt 0:02:40]} 15. axb5 {[%emt 0:00:02]} h5 {[%emt 0:00:59]} 16. h3 {[%emt 0:00:54]} Bh6 {[%emt 0:02:42]} 17. Bxh6 {[%emt 0:07:34]} Rxh6 {[%emt 0:02:00]} 18. Qf3 {[%emt 0:00:02]} Ng8 {[%emt 0:00:20]} 19. Ra4 {[%emt 0:00:59]} Ne7 {[%emt 0:23:31]} 20. Qxf7 {[%emt 0:04:45]} Qd7 {[%emt 0:00:32]} 21. Re1 {[%emt 0:06:23]} Nc8 {[%emt 0:01:57]} 22. Qxd7 {[%emt 0:00:12]} Rxd7 {[%emt 0:00:09]} 23. Re8 {[%emt 0:00:02]} Re7 {[%emt 0:03:05]} 24. Rg8 {[%emt 0:00:31]} Re1+ {[%emt 0:00:37]} 25. Kh2 {[%emt 0:00:06]} Kc7 {[%emt 0:00:40]} 26. Rf4 {[%emt 0:00:57]} Ne7 {[%emt 0:05:18]} 27. Rg7 {[%emt 0:00:35]} Rh8 {[%emt 0:00:28]} 28. Re4 {[%emt 0:04:26]} Rxe4 {[%emt 0:01:17]} 29. Bxe4 {[%emt 0:00:02]} Kd8 {[%emt 0:00:21]} 30. Bxg6 {[%emt 0:00:05]} Rf8 {[%emt 0:01:17]} 31. Kg2 {[%emt 0:01:37]} h4 {[%emt 0:00:39]} 32. Be4 {[%emt 0:01:01]} hxg3 {[%emt 0:04:53]} 33. fxg3 {[%emt 0:00:20]} Rf6 {[%emt 0:00:00]} 34. h4 {[%emt 0:00:11]} a6 {[%emt 0:00:00]} 35. bxa6 {[%emt 0:00:09]} bxa6 {[%emt 0:00:00]} 36. c4 {[%emt 0:00:11]} a5 {[%emt 0:00:00]} 37. Bc2 {[%emt 0:00:55]} Ke8 {[%emt 0:00:00]} 38. Rh7 {[%emt 0:00:59]} Kf8 {[%emt 0:00:00]} 39. Rh8+ {[%emt 0:00:42]} Kg7 {[%emt 0:00:00]} 40. Ra8 {[%emt 0:00:09]} Ng8 {[%emt 0:00:00]} 41. Ra7+ {[%emt 0:31:18]} Kf8 {[%emt 0:28:33]} 42. Rxa5 {[%emt 0:04:18]} Nh6 {[%emt 0:02:30]} 43. Ra3 {[%emt 0:00:45]} Ng4 {[%emt 0:03:44]} 44. Bd1 {[%emt 0:01:35]} Ne5 {[%emt 0:00:00]} 45. Be2 {[%emt 0:00:00]} Kg7 {[%emt 0:00:00]} 46. Ra7+ {[%emt 0:00:00]} Kh6 {[%emt 0:00:00]} 47. Re7 {[%emt 0:00:00]} Kg6 {[%emt 0:00:00]} 48. b3 {[%emt 0:00:00]} Rf7 {[%emt 0:00:00]} 49. Rxf7 {[%emt 0:00:00]} Kxf7 {[%emt 0:00:00]} 50. g4 {[%emt 0:00:00]} Kf6 {[%emt 0:00:00]} 51. Kg3 {[%emt 0:00:00]} Kf7 {[%emt 0:00:00]} 52. Kf4 {[%emt 0:00:00]} Ng6+ {[%emt 0:00:00]} 53. Kg5 {[%emt 0:00:00]} Ne7 {[%emt 0:00:00]} 54. Bd3 {[%emt 0:00:00]} Kg7 {[%emt 0:00:00]} 55. h5 {[%emt 0:00:00]} Ng8 {[%emt 0:00:00]} 56. Bg6 {[%emt 0:00:00]} Nh6 {[%emt 0:00:00]} 57. Kf4 {[%emt 0:00:00]} Ng8 {[%emt 0:00:00]} 58. g5 {[%emt 0:00:00]} Ne7 {[%emt 0:00:00]} 59. Be4 {[%emt 0:00:00]} Kf7 {[%emt 0:00:00]} 60. h6 {[%emt 0:00:00]} Kf8 {[%emt 0:00:00]} 61. g6 {[%emt 0:00:00]} Kg8 {[%emt 0:00:00]} 62. Kg5 {[%emt 0:00:00]} Kh8 {[%emt 0:00:00]} 63. Bf3 {[%emt 0:00:00]} Nxd5 {[%emt 0:00:00]} 64. g7+ {[%emt 0:00:00]} Kh7 {[%emt 0:00:00]} 65. Be4+ {[%emt 0:00:00]} 1-0

[Event "53rd Women Tournament 2022"]
[Site "Belgrade"]
[Date "2022.04.04"]
[Round "8.2"]
[White "Toncheva, Nadya"]
[Black "Xu, Yuanyuan"]
[Result "0-1"]
[ECO "E48"]
[WhiteElo "2207"]
[BlackElo "2317"]
[Annotator "NA RC"]
[PlyCount "42"]
[EventDate "2022.03.28"]
[EventType "tourn"]
[EventCountry "SRB"]
[SourceTitle "playchess.com"]
[Source "ChessBase"]
[SourceQuality "1"]
[TimeControl "40/5400+30:1800+30"]

1. d4 {[%emt 0:00:02]} Nf6 {[%emt 0:00:47]} 2. c4 {[%emt 0:00:04]} e6 {[%emt 0:00:45]} 3. Nc3 {[%emt 0:00:06]} Bb4 {[%emt 0:00:09]} 4. e3 {[%emt 0:00:04]} O-O {[%emt 0:00:11]} 5. Bd3 {[%emt 0:00:05]} d5 {[%emt 0:00:11]} 6. cxd5 {[%emt 0:00:04]} exd5 {[%emt 0:00:08]} 7. Nge2 {[%emt 0:00:04]} Re8 {[%emt 0:00:26]} 8. O-O {[%emt 0:00:31]} Bd6 {[%emt 0:00:45]} 9. Bd2 {[%emt 0:05:27]} b6 {[%emt 0:06:23]} 10. Qc2 {[%emt 0:04:48]} c5 {[%emt 0:04:25]} 11. dxc5 {[%emt 0:02:26]} bxc5 {[%emt 0:00:12]} 12. Ng3 {[%emt 0:07:20]} Nc6 {[%emt 0:09:19]} 13. Bb5 {[%emt 0:13:00]} Bd7 {[%emt 0:03:56]} 14. Rfd1 {[%emt 0:06:32]} Ng4 {[%emt 0:08:23]} 15. Nce2 {[%emt 0:08:23]} Qh4 {[%emt 1:02:00]} 16. h3 {[%emt 0:00:32]} Nxf2 {[%emt 0:00:00]} 17. Bxc6 {[%emt 0:09:16]} Nxh3+ {[%emt 0:00:00]} 18. gxh3 {[%emt 0:00:05]} Bxc6 {[%emt 0:00:00]} 19. Nf5 {[%emt 0:12:31]} Bh2+ {[%emt 0:00:00]} 20. Kf1 {[%emt 0:01:35]} Qxh3+ {[%emt 0:00:00]} 21. Ke1 {[%emt 0:07:13]} Bd7 {[%emt 0:00:00]} 0-1

[Event "53rd Women Tournament 2022"]
[Site "Belgrade"]
[Date "2022.04.04"]
[Round "8.3"]
[White "Grozdanovic, Anastasia"]
[Black "Srdanovic, Jovana"]
[Result "0-1"]
[ECO "D17"]
[WhiteElo "2005"]
[BlackElo "2194"]
[Annotator "NA RC"]
[PlyCount "90"]
[EventDate "2022.03.28"]
[EventType "tourn"]
[EventCountry "SRB"]
[SourceTitle "playchess.com"]
[Source "ChessBase"]
[SourceQuality "1"]
[TimeControl "40/5400+30:1800+30"]

1. d4 {[%emt 0:00:02]} d5 {[%emt 0:00:05]} 2. c4 {[%emt 0:00:07]} c6 {[%emt 0:00:04]} 3. Nf3 {[%emt 0:00:05]} Nf6 {[%emt 0:00:05]} 4. Nc3 {[%emt 0:00:05]} dxc4 {[%emt 0:00:07]} 5. a4 {[%emt 0:00:07]} Bf5 {[%emt 0:00:06]} 6. Ne5 {[%emt 0:00:08]} e6 {[%emt 0:00:12]} 7. e3 {[%emt 0:00:12]} Nbd7 {[%emt 0:02:18]} 8. Nxd7 {[%emt 0:03:00]} Qxd7 {[%emt 0:00:34]} 9. Bxc4 {[%emt 0:00:06]} a5 {[%emt 0:02:35]} 10. O-O {[%emt 0:02:32]} Bg6 {[%emt 0:04:33]} 11. Qe2 {[%emt 0:04:01]} Bb4 {[%emt 0:00:25]} 12. Rd1 {[%emt 0:02:53]} O-O {[%emt 0:02:27]} 13. Bd2 {[%emt 0:07:31]} Qe7 {[%emt 0:05:25]} 14. Be1 {[%emt 0:11:01]} Rfd8 {[%emt 0:09:01]} 15. Bd3 {[%emt 0:22:12]} e5 {[%emt 0:34:18]} 16. Bxg6 {[%emt 0:08:46]} hxg6 {[%emt 0:00:17]} 17. dxe5 {[%emt 0:09:01]} Qxe5 {[%emt 0:00:08]} 18. Na2 {[%emt 0:00:52]} Bxe1 {[%emt 0:01:32]} 19. Rxe1 {[%emt 0:00:08]} Ne4 {[%emt 0:08:08]} 20. Rad1 {[%emt 0:00:49]} Rd5 {[%emt 0:03:11]} 21. f3 {[%emt 0:02:16]} Rxd1 {[%emt 0:02:26]} 22. Rxd1 {[%emt 0:00:05]} Nc5 {[%emt 0:00:04]} 23. Nc3 {[%emt 0:26:01]} Re8 {[%emt 0:23:59]} 24. Re1 {[%emt 0:00:00]} Rd8 {[%emt 0:00:00]} 25. Qc2 {[%emt 0:00:00]} g5 {[%emt 0:00:00]} 26. Qe2 {[%emt 0:00:00]} Rd6 {[%emt 0:00:00]} 27. g3 {[%emt 0:00:00]} Qe6 {[%emt 0:00:00]} 28. f4 {[%emt 0:00:00]} Qe7 {[%emt 0:00:00]} 29. f5 {[%emt 0:00:00]} Ne4 {[%emt 0:00:00]} 30. Qc2 {[%emt 0:00:00]} Nxc3 {[%emt 0:00:00]} 31. bxc3 {[%emt 0:00:00]} Qd7 {[%emt 0:00:00]} 32. Re2 {[%emt 0:00:00]} Rd1+ {[%emt 0:00:00]} 33. Kg2 {[%emt 0:00:00]} Rd3 {[%emt 0:00:00]} 34. e4 {[%emt 0:00:00]} c5 {[%emt 0:01:10]} 35. c4 {[%emt 0:00:00]} Qd4 {[%emt 0:00:30]} 36. e5 {[%emt 0:01:08]} Rc3 {[%emt 0:03:26]} 37. Qb1 {[%emt 0:01:56]} Qxc4 {[%emt 0:00:10]} 38. Rd2 {[%emt 0:00:21]} Rc1 {[%emt 0:00:11]} 39. Qd3 {[%emt 0:00:21]} Qxa4 {[%emt 0:01:34]} 40. Qd8+ {[%emt 0:00:32]} Kh7 {[%emt 0:00:04]} 41. Qxg5 {[%emt 0:30:27]} Rc2 {[%emt 0:31:55]} 42. Rxc2 {[%emt 0:00:00]} Qxc2+ {[%emt 0:00:00]} 43. Kh3 {[%emt 0:05:15]} Qd1 {[%emt 0:00:00]} 44. e6 {[%emt 0:00:00]} b5 {[%emt 0:01:30]} 45. Qh4+ {[%emt 0:01:00]} Kg8 0-1

[Event "53rd Women Tournament 2022"]
[Site "Belgrade"]
[Date "2022.04.04"]
[Round "8.4"]
[White "Lu, Miaoyi"]
[Black "Benderac, Ana"]
[Result "0-1"]
[ECO "A44"]
[WhiteElo "2182"]
[BlackElo "2180"]
[Annotator "NA RC"]
[PlyCount "102"]
[EventDate "2022.03.28"]
[EventType "tourn"]
[EventCountry "SRB"]
[SourceTitle "playchess.com"]
[Source "ChessBase"]
[SourceQuality "1"]
[TimeControl "40/5400+30:1800+30"]

1. d4 {[%emt 0:00:02]} c5 {[%emt 0:00:55]} 2. d5 {[%emt 0:00:07]} e5 {[%emt 0:00:21]} 3. e4 {[%emt 0:00:37]} d6 {[%emt 0:00:08]} 4. Bd3 {[%emt 0:00:05]} Be7 {[%emt 0:01:17]} 5. Nf3 {[%emt 0:03:30]} Bg4 {[%emt 0:06:18]} 6. h3 {[%emt 0:09:34]} Bh5 {[%emt 0:01:17]} 7. Nbd2 {[%emt 0:07:16]} Nd7 {[%emt 0:03:05]} 8. g4 {[%emt 0:15:18]} Bg6 {[%emt 0:00:12]} 9. h4 {[%emt 0:00:25]} h6 {[%emt 0:04:25]} 10. Qe2 {[%emt 0:03:37]} Ngf6 {[%emt 0:03:19]} 11. h5 {[%emt 0:14:09]} Bh7 {[%emt 0:01:02]} 12. Rg1 {[%emt 0:02:55]} Qa5 {[%emt 0:17:33]} 13. c3 {[%emt 0:01:56]} a6 {[%emt 0:00:20]} 14. a4 {[%emt 0:11:19]} b5 {[%emt 0:01:20]} 15. Nb3 {[%emt 0:03:03]} Qd8 {[%emt 0:00:19]} 16. axb5 {[%emt 0:00:06]} axb5 {[%emt 0:56:39]} 17. Rxa8 Qxa8 {[%emt 0:00:00]} 18. Bxb5 {[%emt 0:00:56]} Bxe4 {[%emt 0:00:00]} 19. c4 {[%emt 0:05:53]} Qa2 {[%emt 0:00:00]} 20. Nfd2 {[%emt 0:05:51]} Bc2 {[%emt 0:00:00]} 21. Rg3 {[%emt 0:00:38]} O-O {[%emt 0:00:00]} 22. Nd4 {[%emt 0:10:16]} cxd4 {[%emt 0:00:00]} 23. Ra3 {[%emt 0:00:03]} d3 {[%emt 0:00:00]} 24. Qe3 {[%emt 0:00:50]} Ra8 {[%emt 0:00:00]} 25. Rxa2 {[%emt 0:00:15]} Rxa2 {[%emt 0:00:00]} 26. Nb3 {[%emt 0:03:48]} Bxb3 {[%emt 0:00:00]} 27. Qxd3 {[%emt 0:00:03]} Nc5 {[%emt 0:00:00]} 28. Qb1 {[%emt 0:00:38]} e4 {[%emt 0:00:00]} 29. f3 {[%emt 0:00:53]} exf3 {[%emt 0:00:00]} 30. g5 {[%emt 0:00:32]} Nfe4 {[%emt 0:00:00]} 31. gxh6 {[%emt 0:00:26]} Bh4+ {[%emt 0:00:00]} 32. Kf1 {[%emt 0:00:05]} Bd1 {[%emt 0:02:48]} 33. h7+ {[%emt 0:00:12]} Kxh7 {[%emt 0:01:16]} 34. Be3 {[%emt 0:00:05]} Be2+ {[%emt 0:00:04]} 35. Kg1 {[%emt 0:00:04]} f2+ {[%emt 0:00:11]} 36. Bxf2 {[%emt 0:00:03]} Bxf2+ {[%emt 0:00:04]} 37. Kg2 {[%emt 0:01:01]} Ra7 {[%emt 0:00:18]} 38. b4 {[%emt 0:00:12]} Nd3 {[%emt 0:00:26]} 39. c5 {[%emt 0:00:54]} Nf4+ {[%emt 0:00:29]} 40. Kh2 {[%emt 0:00:29]} Bg3+ {[%emt 0:00:39]} 41. Kg1 {[%emt 0:30:39]} f5 {[%emt 0:32:00]} 42. Bxe2 {[%emt 0:01:20]} Nxe2+ {[%emt 0:02:00]} 43. Kh1 {[%emt 0:00:00]} dxc5 {[%emt 0:00:00]} 44. bxc5 {[%emt 0:00:00]} Be5 {[%emt 0:00:00]} 45. Kg2 {[%emt 0:00:00]} Nf4+ {[%emt 0:00:00]} 46. Kh2 {[%emt 0:00:00]} Nxh5+ {[%emt 0:00:00]} 47. Kg2 {[%emt 0:00:00]} Nf4+ {[%emt 0:00:00]} 48. Kh2 {[%emt 0:00:00]} Nxd5+ {[%emt 0:00:00]} 49. Kg2 {[%emt 0:00:00]} Nf4+ {[%emt 0:00:00]} 50. Kh2 {[%emt 0:00:00]} Ra6 {[%emt 0:00:00]} 51. c6 {[%emt 0:00:00]} Rxc6 {[%emt 0:00:00]} 0-1